Cogmind - Beta 14 @@@ ROGUE MODE // 2024.09.09 @ 01:20:31 Player: Maulwurf Result: Destroyed by 7Z-ZM2(z) with EM Pulse Cannon Performance ------------- Evolutions (1) 500 Regions Visited (5) 1000 Robots Destroyed (12) 60 Value Destroyed (286) 286 Prototype IDs (0) 0 Alien Tech Used (0) 0 Bonus (21) 21 TOTAL SCORE: 1867 Bonus ------- Follower Combat Kills 21 Cogmind --------- Core Integrity 0/400 Matter 251/300 Energy 95/100 System Corruption 0% Temperature Cool (0) Movement Core (50) Location -7/Zion Parts ------- > --- POWER (1) -------- (None) > --- PROPULSION (4) --- (None) > --- UTILITY (2) ------ (None) > --- WEAPON (2) ------- CR-A16's Pointy Stick > --- INVENTORY (5) ---- Improved Hover Unit Improved Hover Unit Large Storage Unit Small Laser Heavy Assault Rifle Peak State ------------ > --- POWER ------------ Light Ion Engine > --- PROPULSION ------- Improved Hover Unit Improved Hover Unit Improved Hover Unit Improved Hover Unit > --- UTILITY ---------- Small Storage Unit > --- WEAPON ----------- Mining Laser CR-A16's Pointy Stick > --- INVENTORY -------- Improved Hover Unit Improved Hover Unit Large Storage Unit Small Laser Heavy Assault Rifle Rocket Launcher Mini Grenade Launcher [Rating: 16] Favorites ----------- Power Ion Engine Engine Ion Engine Propulsion Improved Hover Unit Leg Aluminum Leg Hover Unit Improved Hover Unit Utility Small Storage Unit Storage Small Storage Unit Weapon Small Laser Energy Gun Small Laser Ballistic Gun Assault Rifle Launcher Rocket Launcher Special Weapon Mining Laser Piercing Weapon CR-A16's Pointy Stick Build | -11 -10 -10 -9 -9 -7 ------- Run | Yrd Mat Min Mat Min Zio Slots Evolved 2 | . . . 2 . . Power . | . . . . . . Propulsion 2 | . . . 2 . . Utility . | . . . . . . Weapon . | . . . . . . Parts Attached 18 | 7 1 . 7 . 3 Power 2 | 1 . . 1 . . Engine 2 | 1 . . 1 . . Core . | . . . . . . Reactor . | . . . . . . Propulsion 6 | 2 . . 4 . . Treads . | . . . . . . Leg 2 | 2 . . . . . Wheel . | . . . . . . Hover 4 | . . . 4 . . Flight . | . . . . . . Utility 2 | 1 1 . . . . Device . | . . . . . . Storage 2 | 1 1 . . . . Processor . | . . . . . . Hackware . | . . . . . . Protection . | . . . . . . Artifact . | . . . . . . Weapon 8 | 3 . . 2 . 3 Energy Gun 1 | 1 . . . . . Energy Cannon . | . . . . . . Ballistic Gun 2 | 2 . . . . . Ballistic Cannon . | . . . . . . Launcher 3 | . . . 2 . 1 Special Weapon 1 | . . . . . 1 Impact Weapon . | . . . . . . Slashing Weapon . | . . . . . . Piercing Weapon 1 | . . . . . 1 Special Melee Weapon . | . . . . . . Unidentified Prototypes . | . . . . . . Parts Lost 9 | . . . 1 . 8 Power 2 | . . . 1 . 1 Propulsion 4 | . . . . . 4 Utility 1 | . . . . . 1 Weapon 2 | . . . . . 2 Highest Loss Streak 8 | . . . 1 . 8 To Critical Strikes . | . . . . . . Average Slot Usage (%) 82 | . 86 85 77 88 81 Engine 11 | . 14 14 10 11 10 Leg 13 | . 28 28 3 . . Hover 21 | . . . 32 44 41 Storage 12 | . 15 14 11 11 11 Energy Gun 6 | . 14 14 4 . . Ballistic Gun 6 | . 14 14 4 . . Launcher 8 | . . . 11 22 15 Peak Build Rating 16 | 6 7 7 15 15 16 Average Rating 9 | 5 6 6 11 15 14 On Entrance 8 | . 6 6 6 15 15 Naked Turns . | . . . . . . Heaviest Build 33 | 13 33 13 15 13 13 Greatest Support 28 | 20 20 20 28 28 28 Greatest Overweight (x) 4 | 2 1 . 4 . . Average Overweight (x) . | . . . . . . Largest Inventory Capacity 15 | 8 15 8 8 8 8 Average Capacity 8 | 7 8 8 8 8 8 Most Carried 8 | 4 7 8 8 7 8 Average Carried 6 | 3 5 7 7 7 7 Final Capacity 8 | 8 8 8 8 8 5 Final Carried 8 | 4 6 8 7 7 5 Class Distribution -------------------- 100% | Mutant Dominant Class ---------------- Mutant | -10/Materials Mutant | -10/Mines Mutant | -9/Materials Mutant | -9/Mines Mutant | -7/Zion Resources | -11 -10 -10 -9 -9 -7 ----------- Run | Yrd Mat Min Mat Min Zio Matter Collected 476 | 229 87 45 49 . 66 Remotely . | . . . . . . Salvage Created 302 | . 157 92 49 . 4 Parts 18 | . 9 4 2 . 3 Haulers Intercepted 1 | . . . 1 . . Recyclers Shooed 2 | . . 2 . . . Parts Field Recycled . | . . . . . . Retrieved Matter . | . . . . . . Parts Self-Destructed . | . . . . . . Prevented . | . . . . . . Kills | -11 -10 -10 -9 -9 -7 ------- Run | Yrd Mat Min Mat Min Zio Combat Hostiles Destroyed 8 | . 5 2 1 . . Guns 7 | . 5 2 . . . AOE 1 | . . . 1 . . Classes Destroyed 7 | . 3 . 3 . 1 Worker 1 | . . . 1 . . Hauler 1 | . . . 1 . . Watcher 1 | . 1 . . . . Swarmer 3 | . 3 . . . . Grunt 4 | . 2 2 . . . Sentry 1 | . . . 1 . . Zionite 1 | . . . . . 1 Best Kill Streak 5 | . 5 1 2 . 1 Combat Bots Only 5 | . 5 1 1 . . Max Kills in Single Turn 1 | . 1 1 1 . 1 Gunslinging . | . . . . . . Exploded 1 | . . . 1 . . Melee . | . . . . . . Uniques/NPCs Destroyed . | . . . . . . Combat | -11 -10 -10 -9 -9 -7 -------- Run | Yrd Mat Min Mat Min Zio Hostile Shots Fired 125 | . 18 25 20 . 62 Missed 48 | . 9 10 8 . 21 Damage Taken 1296 | . 144 232 186 . 734 Core 478 | . 40 33 44 . 361 Absorbed by Shields . | . . . . . . Core Remaining (%) 85 | 100 . 70 . . . Volleys Fired 46 | 1 19 16 5 . 5 Largest 2 | 2 2 2 2 . 1 Hottest 100 | 60 60 60 63 . 100 Shots Fired 87 | 2 38 32 10 . 5 Gun 72 | 2 38 32 . . . Cannon . | . . . . . . Launcher 11 | . . . 10 . 1 Special 4 | . . . . . 4 Kinetic 36 | 1 19 16 . . . Thermal 40 | 1 19 16 . . 4 Explosive 11 | . . . 10 . 1 Electromagnetic . | . . . . . . Robot Hit Streak 9 | . 4 9 3 . . Robot Miss Streak 3 | . 3 2 1 . 1 Penetration Max . | . . . . . . Secondary Targets 1 | . 1 . . . . Max Gunslinging Chain 1 | . 1 . . . . Shots Hit Robots 50 | . 19 24 6 . 1 Core Hits 23 | . 11 5 6 . 1 Critical Kills . | . . . . . . Critical Parts Destroyed . | . . . . . . Critical Strikes . | . . . . . . Melee Attacks 3 | . . . . . 3 Impact . | . . . . . . Slashing . | . . . . . . Piercing 3 | . . . . . 3 Sneak Attacks . | . . . . . . Combat Hostiles . | . . . . . . Follow-up Attacks . | . . . . . . Damage Inflicted 933 | 8 342 282 209 . 92 Guns 526 | . 255 271 . . . Cannons . | . . . . . . Explosions 354 | . 73 . 189 . 92 Melee . | . . . . . . Ramming 53 | 8 14 11 20 . . Kinetic 295 | . 163 132 . . . Thermal 231 | . 92 139 . . . Explosive 281 | . . . 189 . 92 Electromagnetic 73 | . 73 . . . . Impact . | . . . . . . Slashing . | . . . . . . Piercing . | . . . . . . Highest Corruption . | . . . . . . Average Corruption . | . . . . . . Corruption Purged . | . . . . . . Corruption Blocked . | . . . . . . Overload Shots . | . . . . . . Overflow Damage 5 | . . . 5 . . Projectiles . | . . . . . . Explosions . | . . . . . . Melee 5 | . . . 5 . . Knockbacks . | . . . . . . Impact . | . . . . . . Kinetic . | . . . . . . Secondary . | . . . . . . Self-Inflicted Damage 90 | . 41 . 49 . . Shots 3 | . 1 . 2 . . Rammed 2 | . . . 2 . . Targets Rammed 9 | 4 2 1 2 . . Kicked 7 | 4 2 1 . . . Crushed . | . . . . . . Highest Temperature 105 | . 42 105 39 . 74 Average Temperature 40 | . 24 63 25 . 27 Received Heat Transfer 326 | . 48 132 36 . 110 Siege Activations . | . . . . . . Robots Corrupted 1 | . . . 1 . . Combat Hostiles . | . . . . . . Parts Fried 3 | . . . 3 . . Impact Corruptions 1 | . . . 1 . . Robots Melted . | . . . . . . Combat Hostiles . | . . . . . . Parts Melted 1 | . . 1 . . . Heat Transferred 525 | . 200 325 . . . Parts Sabotaged . | . . . . . . Parts Stolen . | . . . . . . Parts Stripped . | . . . . . . Power Chain Reactions . | . . . . . . Alert | -11 -10 -10 -9 -9 -7 ------- Run | Yrd Mat Min Mat Min Zio Peak Influence 290 | . 199 127 290 112 . Initial 112 | . . 77 49 112 . Average 102 | . 113 115 160 112 . Maximum Alert Level 1 | . . . 1 . . Low Security (%) 90 | 100 100 100 53 100 . Level 1 9 | . . . 46 . . Level 2 . | . . . . . . Level 3 . | . . . . . . Level 4 . | . . . . . . Level 5 . | . . . . . . High Security . | . . . . . . Max Security . | . . . . . . Squads Dispatched . | . . . . . . Investigation . | . . . . . . Extermination . | . . . . . . Reinforcement . | . . . . . . Assault . | . . . . . . Garrison . | . . . . . . Intercept . | . . . . . . Searches Triggered . | . . . . . . Construction Impeded . | . . . . . . Haulers Reinforced . | . . . . . . Active Scanning Responses . | . . . . . . Cargo Convoy Interrupts . | . . . . . . Stealth | -11 -10 -10 -9 -9 -7 --------- Run | Yrd Mat Min Mat Min Zio Distress Signals 1 | . . . 1 . . Communications Jammed . | . . . . . . Distress Signals . | . . . . . . Times Spotted 41 | . 10 2 12 . 17 Peak Tracking Total 17 | . 6 1 7 . 17 Tactical Retreats 2 | . . . 1 . 1 Traps | -11 -10 -10 -9 -9 -7 ------- Run | Yrd Mat Min Mat Min Zio Traps Triggered . | . . . . . . Indirectly . | . . . . . . Trap Hack Attempts . | . . . . . . Triggered . | . . . . . . Disarmed . | . . . . . . Reprogrammed . | . . . . . . Reused . | . . . . . . Traps Extracted . | . . . . . . Installed . | . . . . . . Triggered . | . . . . . . Machines | -11 -10 -10 -9 -9 -7 ---------- Run | Yrd Mat Min Mat Min Zio Machines Disabled 2 | . 1 . 1 . . Max in Single Turn 1 | . 1 . . . . Machines Repaired . | . . . . . . Machines Dismantled . | . . . . . . Machines Sabotaged . | . . . . . . Overloaded Fab Kills . | . . . . . . Hacking | -11 -10 -10 -9 -9 -7 --------- Run | Yrd Mat Min Mat Min Zio Machines Accessed 3 | . 2 . 1 . . Terminals 2 | . 1 . 1 . . Fabricators . | . . . . . . Repair Stations . | . . . . . . Recycling Units 1 | . 1 . . . . Scanalyzers . | . . . . . . Garrison Access . | . . . . . . Total Hacks 3 | . 2 . 1 . . Successful 3 | . 2 . 1 . . Failed . | . . . . . . Catastrophic . | . . . . . . Database Lockouts . | . . . . . . Manual . | . . . . . . Terminals 2 | . 1 . 1 . . Fabricators . | . . . . . . Repair Stations . | . . . . . . Recycling Units 1 | . 1 . . . . Scanalyzers . | . . . . . . Garrison Access . | . . . . . . Terminal Hacks 2 | . 1 . 1 . . Branch Access Points 1 | . . . 1 . . Emergency Access Points 1 | . 1 . . . . Fabricator Hacks . | . . . . . . Repair Station Hacks . | . . . . . . Recycling Unit Hacks 1 | . 1 . . . . Recycle Component 1 | . 1 . . . . Scanalyzer . | . . . . . . Garrison Access Hacks . | . . . . . . Unauthorized Hacks . | . . . . . . Terminals . | . . . . . . Fabricators . | . . . . . . Repair Stations . | . . . . . . Recycling Units . | . . . . . . Scanalyzers . | . . . . . . Garrison Access . | . . . . . . Data Cores Recovered . | . . . . . . Used . | . . . . . . Hacking Detections . | . . . . . . Full Trace Events . | . . . . . . Feedback Events . | . . . . . . Feedback Blocked . | . . . . . . Robot Schematics Acquired 2 | . . . . . 2 Robots Built . | . . . . . . Authchips . | . . . . . . Time . | . . . . . . Total Robot Build Rating . | . . . . . . Part Schematics Acquired 15 | . . . . . 15 Parts Built . | . . . . . . Authchips . | . . . . . . Time . | . . . . . . Total Part Build Rating . | . . . . . . Parts Repaired . | . . . . . . Time . | . . . . . . Parts Recycled 1 | . 1 . . . . Recycled Matter . | . . . . . . Retrieved Matter . | . . . . . . Retrieved Components . | . . . . . . Parts Scanalyzed . | . . . . . . Part Schematics Acquired . | . . . . . . Parts Damaged . | . . . . . . Bothacking | -11 -10 -10 -9 -9 -7 ------------ Run | Yrd Mat Min Mat Min Zio Used RIF Installer . | . . . . . . Robots Hacked . | . . . . . . Non-combat . | . . . . . . Combat . | . . . . . . Robot Hacks Applied . | . . . . . . Relay Couplers Released . | . . . . . . Fabnet Peak Effective % . | . . . . . . Robots Rewired . | . . . . . . Allies Hacked . | . . . . . . Hacks Repelled . | . . . . . . Allies | -11 -10 -10 -9 -9 -7 -------- Run | Yrd Mat Min Mat Min Zio Total Allies 5 | . . 1 . . 4 Largest Group 4 | . . 1 1 . 4 Highest-Rated Group 81 | . . 31 31 . 81 Highest-Rated Ally 31 | . . 31 31 . 28 Total Orders . | . . . . . . Ally Attacks 8 | . . . 8 . . Total Damage 82 | . . . 82 . . Kills 3 | . . . 3 . . Allies Corrupted . | . . . . . . Allies Melted . | . . . . . . Intel | -11 -10 -10 -9 -9 -7 ------- Run | Yrd Mat Min Mat Min Zio Robot Analysis Total . | . . . . . . Derelict Logs Recovered 1 | . . . . . 1 Drone Launches . | . . . . . . Drone Recoveries . | . . . . . . Exploration | -11 -10 -10 -9 -9 -7 ------------- Run | Yrd Mat Min Mat Min Zio Turns Passed 982 | 117 261 124 134 9 337 Spaces Moved 1015 | 74 155 55 164 19 548 Core 16 | 14 . . 2 . . Treads . | . . . . . . Legs 287 | 60 155 55 17 . . Wheels . | . . . . . . Hover 712 | . . . 145 19 548 Flight . | . . . . . . Fastest Speed 48 | 50 120 120 48 48 48 Average Speed 70 | 113 123 120 58 48 48 Slowest Speed 250 | 150 190 120 250 48 56 Overloaded Moves . | . . . . . . Propulsion Burnouts . | . . . . . . Robots Hopped . | . . . . . . Cave-ins Triggered . | . . . . . . Exploration Rate (%) 25 | 5 33 15 19 14 68 Regions Visited 5 Branch Regions 3 Pre-discovered Areas 2 | . . . . . 2 Known Exits Taken 1 | . . . 1 . . Unknown Exits Taken 4 | 1 1 1 . 1 . Scrap Searched 2 | . . . . . 2 Spaces Dug . | . . . . . . Terrain Destroyed 58 | . . . 56 . 2 Melee . | . . . . . . Projectile . | . . . . . . AOE 58 | . . . 56 . 2 Terrain Rammed . | . . . . . . Walls Destroyed . | . . . . . . Machines Disabled . | . . . . . . Actions | -11 -10 -10 -9 -9 -7 --------- Run | Yrd Mat Min Mat Min Zio Total 1186 | 103 186 81 195 18 603 Wait 62 | 8 6 6 2 . 40 Move 1010 | 73 154 54 163 18 548 Hop . | . . . . . . Pick Up 26 | 10 3 3 9 . 1 Fast Attach . | . . . . . . Attach 17 | 6 1 . 7 . 3 Detach 3 | . 1 . . . 2 Swap 1 | 1 . . . . . Drop 9 | . . 1 7 . 1 Fire 46 | 1 19 16 5 . 5 Melee 3 | . . . . . 3 Ram 2 | . . . 2 . . Kick 7 | 4 2 1 . . . Crush . | . . . . . . Escape Stasis . | . . . . . . Rewire . | . . . . . . Trap . | . . . . . . Miscellaneous . | . . . . . . Route ------- -11/Scrapyard -10/Materials -10/Mines -9/Materials (discovered 2 exits: *Min x2) -9/Mines -7/Zion History --------- Turn | Location | Event 22 | -11/Scrapyard | Discovered new exit (range 14) 118 | -11/Scrapyard | Entered Materials 310 | -10/Materials | Build established: Mutant 364 | -10/Materials | Discovered new exit (range 7) 379 | -10/Materials | Entered Mines 414 | -10/Mines | Met a Derelict bent on vengeance 473 | -10/Mines | Discovered new exit (range 4) 477 | -10/Mines | Received a Mining Laser from a helpful Derelict 503 | -10/Mines | Entered Materials 503 | -9/Materials | Accompanied by 1 ally 503 | -9/Materials | Evolved 2 slots: Propulsion x2 626 | -9/Materials | Identified exit to Mines 637 | -9/Materials | Entered Mines 644 | -9/Mines | A Derelict revealed a hidden shortcut to a safe place 646 | -9/Mines | Entered Zion 727 | -7/Zion | Acquired unknown access codes intercepted by a Zionite 773 | -7/Zion | Gained Derelict followers 796 | -7/Zion | Learned location of 1 exit from Factory 806 | -7/Zion | Learned location of Warlord (-4) 848 | -7/Zion | Given A8's code to call for help 920 | -7/Zion | Found CR-A16's Pointy Stick 945 | -7/Zion | Attacked by Zionites 979 | -7/Zion | Core integrity fell below 50% 981 | -7/Zion | Core integrity fell below 20% 983 | -7/Zion | Destroyed by 7Z-ZM2(z) with EM Pulse Cannon Last Messages --------------- 00947_ Critical hit (Burn: +37). 00948_ Mining Laser destroyed. 00950_ Imp. Hover Unit destroyed. 00953_ 3M-EJF(z) pulls a Mak. Spear out of the Twisted Machinery. 00956_ 3E-9B7(z) pulls a Mak. Laser out of the Twisted Machinery. 00958_ 4B-T88(z) pulls a Mak. Sword out of the Twisted Machinery. 00960_ Lgt. Ion Engine destroyed. 00968_ A3-HOY(z) pulls a Mak. Spear out of the Twisted Machinery. 00970_ 2W-R50(z) emerges from the Twisted Machinery. 00971_ 2W-R50(z) pulls a Mak. Sword out of the Twisted Machinery. 00972_ ET-0RJ(z) pulls a Mak. Shrapnel Gun out of the Twisted Machinery. 00974_ Imp. Hover Unit destroyed. 00975_ HY-XV7(z) destroyed. 00975_ Imp. Hover Unit destroyed. 00976_ Rocket Launcher destroyed. 00978_ 06-QMX(z) heat damages Mak. Leg, Mak. Leg, Mak. Power Source, Mak. Laser. 00980_ 06-QMX(z) heat damages Mak. Laser. 00982_ 06-QMX(z) overheating. 00983_ Sml. Storage Unit destroyed. Map ----- +----------------------------------------------------+ | ###??????????????????????????????????????????????? | | ##?????????????????????????????????????????????? | | #?????????????????????????????????????????????? | | ##????##???????????????????????????????????????? | | #####""##"#??????????????????????????????????????? | | ##"#"#""""#########?##???????????????????????????? | | #""""""""""""""##"##"#???????????????????????????? | | """ """""""""###??????????????????????????? | | """ """""##?????????????????????????? | | """ """#?????????????????????????? | | """ "##?????????????????????????? | | "" ""#?#?#?????????????????????? | | """ """#<<<"#????????????????????? | | """" """"< < ""???????????????????? | | "" """" """" z " ??????????????????? | | """"""""" """ "?????????????????? | | """"""""""" "?????????????????? | | "" """"""#""" ?????????????????? | | """ ""###" """"" ?????????????????? | | "#"" ""##""" """"" "" # ?????????????????? | | #"""""""""""""" "" "" """???????????????????? | | ?#"#""""""" """" " "" "##???????????????????? | | """?"""""" " "" ""#???????????????????? | | """"""" z ""z ""#???????????????????? | | = "##??????????????????? | | /%* @ """##""???????????????? | | z""""""""??????????????? | | "" "" z" z#"""""""??????????????? | | """ ??""" """ """""" "" """"?????????????? | | """????""""""#""""""""" " "" ??????????? | | ""??????""#"""##"#"##"" ""?????????? | | "??????????##?####"#"" " ""?????????? | | "??????????????????#"" " "?????????? | | ?""??????????????????#"" z " """ ?????????? | | ?????????????????????#"" " """""" "????????? | | ?????????????????????##"css" """""" ""???????? | | ??????????????????????#" " """"" ""???????? | | ???????????????????####" " """" ""??????? | | ???????????????????#"""" z "" "#######? | | ???????????????????##""" i ""?# "## | | ?????????????????####" " ""#?# """ | | ????????????????##"" " """### """ | | ????????????????#"" # """# | | ????????????????##"" """""""""" | | ?????????????????## """"####"" | | ?????????????????#"" """##??#"" "# | | ?????????????????##"" #"""#??##" "### """ | | ??????????????????##" """##??##" #?# """ | | ??????????????????##" """""#"#"" #?# "## | | ??????????????????#""" """#"""#""" "#######? | +----------------------------------------------------+ Best States ------------- Heat Dissipation 28 Energy Generation 10 Energy Capacity 250 Matter Stores 300 Matter Capacity 300 Sight Range 16 Terrain Scan Density 10 Evasion (%) 55 Item Schematics ----------------- Imp. Particle Charger | -7/Zion | Archive Gauss Rifle | -7/Zion | Archive Imp. Heavy Armor Plating | -7/Zion | Archive Imp. Shield Generator | -7/Zion | Archive Imp. Medium Treads | -7/Zion | Archive Imp. Field Recycling Unit | -7/Zion | Archive Lrn. Tractor Beam | -7/Zion | Archive Imp. Recalibrator | -7/Zion | Archive Adv. Assault Cannon | -7/Zion | Archive Matter Compressor | -7/Zion | Archive Adv. Signal Interpreter | -7/Zion | Archive Energy Filter | -7/Zion | Archive Imp. Deuterium Engine | -7/Zion | Archive Imp. Hacking Suite | -7/Zion | Archive System Restoration Module | -7/Zion | Archive Robot Schematics ------------------ A-02 Transporter | -7/Zion | Archive B-48 Gladiator | -7/Zion | Archive Fabricated ------------ Nothing Alien Tech Used ----------------- None Achievements -------------- Power Corrupts Robot Respite Challenges ------------ None Game ------ Seed SmallArcCyclogen Manual? 0 Play Time 00:27:46 Cumulative 4.9 hours Start 2024.09.09 @ 00:49:50 End 2024.09.09 @ 01:20:31 Sessions 1 Manual Loads 0 Difficulty Rogue Special Mode None Game No. 12 Rogue 12 Adventurer 0 Explorer 0 Win Type - Total 0 Types 0/0/0/0/0/0/0/0/0 Lore% 8 Gallery% 6 Achievement% 11 Wizard Run 0 Options --------- Layout 0 ASCII 0 Keyboard 1 Movement Numpad Keybinds 0 Fullscreen 1 Font 18/SmallcapsGlow Map View 76x50 Zoom Use 0% Tactical HUD 1 Map Filters NONE Filters NONE Steam 1 RUN: 00172a83-df57-4200-9cdd-789d452fd126